bitfinex-derivatives/quotes_SOLF0:USTF0_20251018
["timestamp","ask_amount","ask_price","bid_price","bid_amount"]
[1760817720211,44.2,186.35,186.32,4.99447618]
[1760817720710,44.2,186.34,186.31,4.99447618]
[1760817720910,2.79,186.33,186.31,4.99447618]
[1760817721107,44.2,186.32,186.31,4.99447618]
[1760817721314,46.99,186.32,186.31,4.99447618]
[1760817722010,2.79,186.32,186.31,4.99447618]
[1760817722216,2.79,186.31,186.3,4.99447618]
[1760817722414,46.99,186.31,186.3,4.99447618]
[1760817722616,44.2,186.31,186.29,4.99447618]
[1760817722818,44.2,186.31,186.26,4.99447618]
[1760817723424,2.79,186.29,186.26,4.99447618]
[1760817723621,2.79,186.28,186.26,4.99447618]
[1760817723817,46.99,186.27,186.25,4.99447618]
[1760817724021,2.79,186.26,186.25,4.99447618]
[1760817724425,44.2,186.27,186.25,4.99447618]
[1760817724625,2.79,186.26,186.25,4.99447618]
[1760817724829,2.79,186.26,186.24,4.99447618]
[1760817725026,44.2,186.27,186.24,4.99447618]
[1760817725221,44.2,186.27,186.21,6.67856117]
[1760817725222,2.79,186.26,186.23,4.99447618]
[1760817725422,2.79,186.25,186.22,4.99447618]
[1760817725617,3.3377843,186.26,186.21,4.99447618]
[1760817725820,2.79,186.25,186.2,4.99447618]
[1760817726016,3.3377843,186.26,186.2,4.99447618]
[1760817726517,2.79,186.25,186.2,7.85447618]
[1760817726720,2.79,186.25,186.2,4.99447618]
[1760817727022,3.3377843,186.26,186.21,2.86]
[1760817727527,2.74,186.25,186.21,2.86]
[1760817727728,3.3377843,186.26,186.21,2.86]
[1760817728022,2.74,186.25,186.21,2.86]
[1760817728222,46.96,186.24,186.21,2.86]
[1760817728428,2.74,186.24,186.21,2.86]
[1760817728730,44.22,186.23,186.21,2.86]
[1760817728921,2.74,186.24,186.21,2.86]
[1760817729122,44.22,186.23,186.21,2.86]
[1760817729320,2.74,186.24,186.21,2.86]
[1760817729527,23.7,186.23,186.21,2.86]
[1760817730028,2.74,186.24,186.21,2.86]
[1760817730231,23.0,186.23,186.21,2.86]
[1760817730827,6.0777843,186.26,186.22,2.61]
[1760817731129,6.0777843,186.26,186.19,9.82677618]
[1760817731130,33.38,186.25,186.21,2.61]
[1760817731325,33.38,186.25,186.19,9.82677618]
[1760817732022,2.74,186.24,186.19,9.82677618]
[1760817732227,2.74,186.24,186.2,2.61]
[1760817732626,2.74,186.24,186.2,7.60447618]
[1760817733030,42.52,186.25,186.2,7.60447618]
[1760817733330,46.96,186.25,186.2,4.99447618]
[1760817733526,46.96,186.25,186.21,2.61]
[1760817733727,46.96,186.25,186.2,4.99447618]
[1760817733927,46.96,186.25,186.21,2.61]
[1760817734124,46.96,186.25,186.2,4.99447618]
[1760817734525,2.74,186.24,186.21,2.61]
[1760817736334,2.62,186.24,186.2,4.99447618]
[1760817736530,2.62,186.24,186.19,9.82677618]
[1760817736730,2.62,186.24,186.18,4.99447618]
[1760817736934,3.3377843,186.23,186.17,4.99447618]
[1760817737229,2.62,186.22,186.16,7.69447618]
[1760817737531,44.22,186.21,186.16,7.69447618]
[1760817737734,2.62,186.2,186.17,2.7]
[1760817738323,2.62,186.2,186.15,4.99447618]
[1760817738533,46.84,186.21,186.16,2.7]
[1760817738933,2.62,186.21,186.15,4.99447618]
[1760817739125,46.86,186.21,186.15,4.99447618]
[1760817739329,46.86,186.21,186.16,2.7]
[1760817739532,44.24,186.21,186.15,4.99447618]
[1760817739732,46.86,186.21,186.15,7.69447618]
[1760817739932,46.86,186.21,186.16,4.8333]
[1760817740238,2.62,186.22,186.16,7.5333]
[1760817740429,44.24,186.21,186.16,7.5333]
[1760817740631,2.62,186.2,186.16,2.7]
[1760817740929,2.62,186.19,186.16,2.7]
[1760817742036,2.62,186.19,186.14,7.69447618]
[1760817742037,23.94,186.19,186.14,7.69447618]
[1760817742236,2.62,186.18,186.14,7.69447618]
[1760817742436,2.62,186.18,186.15,2.7]
[1760817743137,30.44,186.19,186.15,2.7]
[1760817743737,4.8321,186.21,186.13,7.69447618]
[1760817743933,46.86,186.2,186.13,2.7]
[1760817745829,2.62,186.19,186.12,4.8343]
[1760817746238,44.24,186.2,186.11,4.9830129]
[1760817746432,2.62,186.18,186.1,12.5177129]
[1760817746636,2.62,186.18,186.11,2.7]
[1760817746837,2.62,186.18,186.11,7.6830129]
[1760817747138,2.62,186.18,186.12,2.7]
[1760817748940,2.62,186.18,186.12,7.5341]
[1760817751342,2.62,186.16,186.13,2.7]
[1760817751839,2.62,186.16,186.12,4.8341]
[1760817752039,2.62,186.16,186.14,2.7]
[1760817754443,44.24,186.18,186.14,2.7]
[1760817754743,44.24,186.18,186.13,4.8339]
[1760817754935,3.3377843,186.19,186.13,4.8339]
[1760817755141,2.62,186.18,186.13,4.8339]
[1760817755444,2.62,186.18,186.15,2.7]
[1760817758243,47.5777843,186.19,186.15,2.7]
[1760817758445,2.62,186.18,186.15,2.7]
[1760817758844,46.86,186.18,186.15,2.7]
[1760817760149,2.62,186.17,186.15,2.7]
[1760817766744,2.62,186.17,186.15,7.6830129]
[1760817767155,44.24,186.18,186.16,2.78]
[1760817767358,44.24,186.18,186.16,7.7630129]
[1760817769360,47.07,186.18,186.16,7.7630129]
[1760817770064,2.83,186.17,186.16,4.9830129]
[1760817772461,44.24,186.18,186.15,4.9830129]
[1760817773164,2.83,186.17,186.15,4.9830129]
[1760817773365,44.24,186.18,186.15,4.9830129]
[1760817773664,2.83,186.17,186.15,4.9830129]
[1760817774066,2.83,186.17,186.15,7.7630129]
[1760817774263,2.83,186.17,186.15,2.78]
[1760817777364,2.83,186.17,186.15,7.7630129]
[1760817778459,2.83,186.17,186.16,4.9830129]
[1760817780562,44.24,186.18,186.16,4.9830129]
[1760817780563,44.24,186.18,186.17,2.78]
[1760817780756,47.07,186.18,186.17,5.01628217]
[1760817781666,47.07,186.18,186.16,6.67856117]
[1760817782066,44.24,186.18,186.16,2.78]
[1760817782263,3.3377843,186.2,186.18,2.78]
[1760817782462,44.24,186.19,186.18,2.78]
[1760817783357,74.39010418,186.26,186.18,2.78]
[1760817783358,2.83,186.24,186.18,2.78]
[1760817783666,2.83,186.24,186.23,5.01496874]
[1760817783857,44.24,186.23,186.21,2.78]
[1760817784565,44.24,186.23,186.22,2.78]
[1760817786167,44.24,186.23,186.22,7.79021894]
[1760817786368,6.1677843,186.25,186.22,7.79021894]
[1760817786575,44.24,186.23,186.22,2.78]
[1760817787664,6.1677843,186.28,186.24,2.78]
[1760817787869,47.07,186.27,186.25,2.78]
[1760817788058,47.07,186.27,186.25,5.00664752]
[1760817788263,47.07,186.27,186.24,7.76664752]
[1760817788568,2.8,186.26,186.24,7.76664752]
[1760817788968,2.8,186.26,186.25,5.00664752]
[1760817789368,2.8,186.26,186.24,7.76664752]
[1760817789565,44.24,186.27,186.25,7.76664752]
[1760817790465,44.24,186.27,186.25,2.76]
[1760817790963,47.04,186.27,186.25,2.76]
[1760817791158,2.8,186.26,186.24,5.00664752]
[1760817791368,44.24,186.27,186.24,5.00664752]
[1760817791969,2.8,186.26,186.23,5.00664752]
[1760817792368,2.8,186.24,186.21,5.00664752]
[1760817792667,47.04,186.23,186.2,5.00664752]
[1760817792866,47.04,186.23,186.19,4.8324]
[1760817792867,44.24,186.23,186.22,2.76]
[1760817793173,50.3777843,186.28,186.22,2.76]
[1760817793369,50.3777843,186.28,186.24,2.76]
[1760817793564,50.3777843,186.28,186.25,2.76]
[1760817793763,2.8,186.27,186.24,4.99707742]
[1760817793968,2.8,186.27,186.24,7.75707742]
[1760817795266,2.8,186.27,186.24,2.76]
[1760817795569,47.5777843,186.28,186.25,7.75707742]
[1760817795570,47.04,186.28,186.25,7.75707742]
[1760817797365,47.07,186.28,186.25,7.75707742]
[1760817797677,6.1677843,186.35,186.29,2.66]
[1760817797870,44.24,186.34,186.29,7.64795712]
[1760817798170,2.83,186.33,186.3,2.66]
[1760817798573,44.28,186.32,186.3,2.66]
[1760817798773,2.83,186.33,186.3,2.66]
[1760817798970,47.11,186.33,186.3,2.66]
[1760817799177,2.83,186.33,186.3,2.66]
[1760817799373,6.1677843,186.35,186.31,2.66]
[1760817799876,2.83,186.34,186.31,2.66]
[1760817800472,47.11,186.34,186.31,2.66]
[1760817800979,47.09,186.34,186.31,7.4892]
[1760817801771,2.83,186.34,186.31,7.4892]
[1760817802476,6.1677843,186.35,186.32,2.66]
[1760817802672,50.4277843,186.35,186.32,2.66]
[1760817803072,6.1677843,186.35,186.32,2.66]
[1760817803276,50.4277843,186.35,186.32,2.66]
[1760817803675,6.1677843,186.35,186.32,2.66]
[1760817804078,50.4277843,186.35,186.32,2.66]
[1760817804580,6.1677843,186.35,186.32,2.66]
[1760817804878,3.3377843,186.35,186.32,2.66]
[1760817805267,47.09,186.37,186.32,2.66]
[1760817805467,2.83,186.36,186.33,2.66]
[1760817806169,2.83,186.36,186.32,4.8289]
[1760817806373,2.83,186.36,186.33,2.66]
[1760817808679,47.07,186.41,186.35,2.66]
[1760817808877,47.5977843,186.4,186.35,2.66]
[1760817809076,47.5977843,186.4,186.34,4.8286]
[1760817809281,2.83,186.39,186.35,2.66]
[1760817810475,2.83,186.39,186.35,4.8282]
[1760817810681,2.83,186.39,186.36,2.66]
[1760817813682,2.83,186.39,186.36,7.4879]
[1760817814379,2.83,186.39,186.28,10.02440928]
[1760817814380,2.83,186.41,186.39,2.66]
[1760817819280,140.12932025,186.46,186.36,4.828]
[1760817819281,2.83,186.42,186.36,4.828]
[1760817819478,2.83,186.42,186.35,2.66]
[1760817819677,47.07,186.42,186.35,2.66]
[1760817820284,2.83,186.42,186.35,2.66]
[1760817820485,47.07,186.42,186.35,2.66]
[1760817820983,3.3377843,186.43,186.37,4.8277]
[1760817821179,2.83,186.41,186.37,7.4877]
[1760817821683,44.22,186.42,186.37,7.4877]
[1760817821879,2.83,186.41,186.37,7.4877]
[1760817822285,44.22,186.42,186.37,7.4877]
[1760817822683,2.83,186.41,186.37,7.4877]
[1760817823382,44.22,186.42,186.37,7.4877]
[1760817823686,2.83,186.41,186.37,7.4877]
[1760817824282,3.3377843,186.43,186.37,7.4877]
[1760817824481,44.22,186.42,186.37,7.4877]
[1760817824683,2.83,186.41,186.37,7.4877]
[1760817824882,44.22,186.42,186.38,4.8274]
[1760817825077,3.3377843,186.43,186.38,4.8274]
[1760817825283,44.22,186.42,186.38,4.8274]
[1760817825487,2.83,186.41,186.38,4.8274]
[1760817825790,44.22,186.42,186.38,4.8274]
[1760817825982,2.83,186.41,186.38,4.8274]
[1760817826182,44.22,186.42,186.38,4.8274]
[1760817826383,46.93,186.42,186.39,2.64]
[1760817827091,2.71,186.42,186.39,2.64]
[1760817827488,46.93,186.42,186.39,2.64]
[1760817827992,2.71,186.42,186.39,7.4672]
[1760817828288,46.93,186.42,186.39,7.4672]
[1760817828688,2.71,186.42,186.39,7.4672]
[1760817828884,2.71,186.42,186.4,7.4669]
[1760817830789,3.3377843,186.43,186.41,7.4666]
[1760817831482,2.71,186.44,186.42,2.64]
[1760817831689,46.93,186.44,186.42,2.64]
[1760817831888,2.71,186.44,186.42,2.64]
[1760817832187,2.71,186.44,186.42,7.4664]
[1760817832587,135.30362025,186.46,186.42,4.8264]
[1760817832786,2.71,186.44,186.42,4.8264]
[1760817832992,46.93,186.44,186.42,4.8264]
[1760817833194,2.71,186.43,186.42,4.8264]
[1760817834693,2.71,186.43,186.41,2.64]
[1760817836899,44.2,186.44,186.41,4.8267]
[1760817837101,44.2,186.44,186.32,9.6583]
[1760817837102,44.2,186.44,186.42,2.64]
[1760817837298,6.0477843,186.45,186.42,2.64]
[1760817837495,47.5377843,186.45,186.42,2.64]
[1760817837694,2.71,186.44,186.42,2.64]
[1760817838094,2.71,186.44,186.42,7.4664]
[1760817838295,47.5377843,186.45,186.42,4.8264]
[1760817838494,47.5377843,186.45,186.43,2.64]
[1760817838895,50.2477843,186.45,186.43,2.64]
[1760817839192,47.5377843,186.45,186.44,2.64]
[1760817839393,3.3377843,186.45,186.44,2.64]
[1760817839594,2.71,186.46,186.44,2.64]
[1760817840199,44.2,186.47,186.4,4.98795712]
[1760817840393,44.2,186.47,186.41,4.98795712]
[1760817840597,2.71,186.47,186.42,2.64]
[1760817840800,2.71,186.47,186.41,4.98795712]
[1760817840994,2.71,186.47,186.44,4.8259]
[1760817841303,2.71,186.47,186.44,7.4659]
[1760817841695,2.71,186.47,186.45,2.64]
[1760817841895,3.3377843,186.48,186.44,7.4659]
[1760817842099,2.71,186.47,186.44,7.4659]
[1760817842297,47.5377843,186.48,186.44,7.4659]
[1760817842499,3.3377843,186.48,186.42,4.8264]
[1760817842704,2.71,186.44,186.4,7.62795712]
[1760817842901,3.3377843,186.45,186.4,2.64]
[1760817843400,47.5377843,186.45,186.4,2.64]
[1760817843703,2.71,186.44,186.4,2.64]
[1760817844108,44.2,186.45,186.41,4.8267]
[1760817844296,2.71,186.44,186.41,4.8267]
[1760817844705,44.2,186.45,186.41,4.8267]
[1760817845108,2.71,186.47,186.41,7.4667]
[1760817845404,44.2,186.46,186.41,7.4667]
[1760817845605,44.2,186.46,186.41,4.8267]
[1760817846003,2.71,186.46,186.41,4.8267]
[1760817846200,4.8254,186.47,186.41,4.8267]
[1760817846201,2.71,186.44,186.41,4.8267]
[1760817846601,4.8254,186.47,186.41,4.8267]
[1760817846802,46.91,186.46,186.41,4.8267]
[1760817847002,2.71,186.44,186.41,7.4667]
[1760817847198,2.71,186.44,186.41,12.45465712]
[1760817847403,2.84,186.44,186.41,12.45465712]
[1760817848908,2.84,186.44,186.42,4.8264]
[1760817849310,2.84,186.45,186.42,4.98795712]
[1760817849498,44.2,186.45,186.42,4.98795712]
[1760817850510,2.84,186.46,186.42,4.98795712]
[1760817850706,2.84,186.44,186.42,4.98795712]
[1760817851409,44.2,186.45,186.42,4.98795712]
[1760817851610,4.8254,186.47,186.42,4.98795712]
[1760817851910,44.2,186.46,186.42,9.81435712]
[1760817852107,2.84,186.45,186.42,9.81435712]
[1760817852406,19.32891826,186.48,186.42,9.81435712]
[1760817852612,2.84,186.47,186.44,2.8]
[1760817853512,3.3377843,186.51,186.44,7.6259]
[1760817853513,8.1620843,186.51,186.44,7.6259]
[1760817853808,2.84,186.49,186.44,7.6259]
[1760817854009,2.84,186.47,186.44,4.8259]
[1760817854213,2.84,186.46,186.44,4.8259]
[1760817857313,2.84,186.46,186.44,9.81385712]
[1760817857513,44.2,186.47,186.44,9.81385712]
[1760817857815,2.85,186.48,186.44,12.46385712]
[1760817858013,44.18,186.48,186.45,4.98795712]
[1760817858515,2.85,186.49,186.45,4.98795712]
[1760817858814,2.85,186.48,186.45,4.98795712]
[1760817859011,44.18,186.47,186.45,4.98795712]
[1760817859313,2.85,186.46,186.45,4.98795712]
[1760817859704,44.18,186.46,186.42,4.98795712]
[1760817859909,44.22,186.45,186.41,4.98795712]
[1760817860106,44.22,186.44,186.41,4.98795712]
[1760817860415,4.8248,186.49,186.43,4.98795712]
[1760817860605,4.98823216,186.54,186.43,4.98795712]
[1760817860606,3.3377843,186.52,186.43,4.98795712]
[1760817860807,2.85,186.48,186.41,4.98795712]
[1760817861008,3.3377843,186.49,186.4,4.98795712]
[1760817861208,44.24,186.48,186.4,4.98795712]
[1760817861604,19.7299273,186.49,186.4,4.98795712]
[1760817861809,44.24,186.47,186.41,4.98795712]
[1760817862011,2.85,186.44,186.41,4.98795712]
[1760817862313,4.8259,186.45,186.41,4.98795712]
[1760817862314,2.85,186.42,186.41,4.98795712]
[1760817862515,47.09,186.42,186.41,4.98795712]
[1760817863011,2.85,186.46,186.41,4.98795712]
[1760817863211,2.85,186.46,186.43,2.65]
[1760817863416,2.85,186.46,186.43,7.64557106]
[1760817863617,47.11,186.46,186.43,7.64557106]
[1760817863817,2.85,186.48,186.44,2.65]
[1760817864414,3.3377843,186.52,186.44,2.65]
[1760817864613,47.11,186.51,186.44,2.65]
[1760817864918,7.6743,186.51,186.44,2.65]
[1760817865812,44.26,186.5,186.44,2.65]
[1760817866008,44.26,186.5,186.43,9.82167106]
[1760817866218,47.11,186.5,186.44,2.65]
[1760817866415,2.85,186.5,186.44,2.65]
[1760817866610,2.85,186.48,186.43,9.82167106]
[1760817866818,2.85,186.48,186.45,2.65]
[1760817867019,47.11,186.48,186.45,2.65]
[1760817867214,2.85,186.48,186.44,7.64557106]
[1760817867417,2.85,186.48,186.44,4.99557106]
[1760817867818,2.85,186.48,186.45,2.65]
[1760817870317,2.85,186.48,186.44,4.99557106]
[1760817870920,2.85,186.48,186.45,2.65]
[1760817871225,2.85,186.48,186.45,7.64557106]
[1760817871425,47.11,186.48,186.45,7.64557106]
[1760817871622,2.85,186.48,186.45,7.64557106]
[1760817872126,47.11,186.48,186.45,7.64557106]
[1760817872626,2.85,186.48,186.45,7.64557106]
[1760817872821,47.09,186.48,186.45,7.64557106]
[1760817873127,2.85,186.48,186.45,7.64557106]
[1760817874822,2.85,186.48,186.45,4.99557106]
[1760817875026,2.85,186.47,186.44,4.99557106]
[1760817875222,4.8249,186.49,186.44,4.99557106]
[1760817875526,2.85,186.47,186.44,4.99557106]
[1760817875724,2.85,186.47,186.43,4.99557106]
[1760817875929,44.24,186.46,186.43,4.99557106]
[1760817876130,47.09,186.47,186.44,4.99557106]
[1760817876327,4.8251,186.48,186.44,4.99557106]
[1760817876525,44.24,186.47,186.44,4.99557106]
[1760817876732,2.85,186.45,186.44,4.99557106]
[1760817878034,16.00775534,186.51,186.42,4.99557106]
[1760817878233,3.3377843,186.52,186.42,4.99557106]
[1760817878533,2.85,186.5,186.41,4.99557106]
[1760817878727,5.01935017,186.51,186.41,4.99557106]
[1760817879034,2.85,186.5,186.41,4.99557106]
[1760817879232,2.85,186.49,186.41,4.99557106]
[1760817879627,4.8262,186.44,186.41,4.99557106]
[1760817879832,2.85,186.42,186.41,4.99557106]
[1760817880230,2.85,186.42,186.4,4.99557106]
[1760817880923,5.01935017,186.5,186.37,6.68662498]
[1760817880924,2.85,186.45,186.42,2.65]
[1760817881126,44.26,186.44,186.42,4.99978598]
[1760817881323,3.3377843,186.5,186.42,4.99978598]
[1760817881324,2.85,186.43,186.42,4.99978598]
[1760817882826,47.11,186.43,186.41,4.99978598]
[1760817883428,2.85,186.49,186.41,4.99978598]
[1760817883630,44.26,186.48,186.4,4.99978598]
[1760817883831,2.85,186.47,186.39,7.64978598]
[1760817884033,2.85,186.46,186.39,4.99978598]
[1760817884230,3.3377843,186.47,186.39,4.99978598]
[1760817884735,44.26,186.46,186.39,4.99978598]
[1760817884932,4.8263,186.44,186.39,4.99978598]
[1760817885628,2.85,186.42,186.39,7.64978598]
[1760817886733,42.65,186.42,186.39,7.64978598]
[1760817888941,42.65,186.42,186.4,2.68]
[1760817889140,2.85,186.42,186.4,2.68]
[1760817889340,42.63,186.42,186.4,2.68]
[1760817889838,7.4163,186.44,186.4,2.68]
[1760817890038,44.26,186.43,186.4,2.68]
[1760817890338,2.59,186.42,186.4,2.68]
[1760817890538,46.85,186.42,186.4,2.68]
[1760817890934,2.59,186.42,186.4,2.68]
[1760817891340,46.85,186.42,186.4,2.68]
[1760817891638,44.26,186.42,186.39,4.99978598]
[1760817891842,2.59,186.45,186.4,7.67978598]
[1760817892240,2.59,186.43,186.4,7.67978598]
[1760817892636,46.85,186.43,186.4,7.67978598]
[1760817893842,46.85,186.43,186.41,2.68]
[1760817894039,2.59,186.43,186.41,2.68]
[1760817894239,2.59,186.43,186.41,7.67978598]
[1760817894636,46.85,186.43,186.41,7.67978598]
[1760817895044,2.59,186.43,186.41,7.67978598]
[1760817895732,46.85,186.43,186.41,7.67978598]
[1760817895929,2.59,186.43,186.41,7.67978598]
[1760817897639,44.24,186.44,186.41,4.99978598]
[1760817897836,2.59,186.43,186.41,4.99978598]
[1760817898236,46.83,186.43,186.41,4.99978598]
[1760817898438,2.59,186.43,186.41,4.99978598]
[1760817898736,46.83,186.43,186.41,4.99978598]
[1760817899142,2.59,186.43,186.41,4.99978598]
[1760817903146,46.83,186.43,186.41,4.99978598]
[1760817903345,2.59,186.43,186.41,4.99978598]
[1760817904446,4.8259,186.45,186.41,4.99978598]
[1760817904640,44.24,186.44,186.4,4.99978598]
[1760817904843,2.59,186.43,186.4,4.99978598]
[1760817905342,44.24,186.43,186.4,7.67978598]
[1760817905550,2.59,186.42,186.4,7.67978598]
[1760817908343,2.59,186.42,186.41,2.8]
[1760817909855,4.8259,186.45,186.4,7.79978598]
[1760817910050,44.22,186.44,186.4,7.79978598]
[1760817910251,2.73,186.43,186.4,7.79978598]
[1760817910447,4.8259,186.45,186.41,2.8]
[1760817910746,2.73,186.43,186.41,2.8]
[1760817911056,2.73,186.44,186.4,7.79978598]
[1760817911252,2.73,186.42,186.4,7.79978598]
[1760817911645,46.95,186.42,186.4,7.79978598]
[1760817912651,2.73,186.42,186.4,7.79978598]
[1760817912846,46.95,186.42,186.4,7.79978598]
[1760817913957,2.73,186.42,186.4,7.79978598]
[1760817914358,37.53,186.42,186.4,7.79978598]
[1760817914550,46.95,186.42,186.4,7.79978598]
[1760817914952,2.73,186.42,186.4,7.79978598]
[1760817915357,2.73,186.42,186.41,4.99978598]
[1760817915854,3.3377843,186.48,186.39,4.99978598]
[1760817916056,44.22,186.47,186.39,4.99978598]
[1760817916246,2.73,186.46,186.39,4.99978598]
[1760817916450,44.22,186.45,186.39,4.99978598]
[1760817916650,44.22,186.44,186.39,4.99978598]
[1760817916848,2.8,186.42,186.38,4.99978598]
[1760817917046,2.8,186.4,186.38,4.99978598]
[1760817917260,47.02,186.4,186.38,4.99978598]
[1760817917557,2.8,186.4,186.38,4.99978598]
[1760817917755,47.02,186.4,186.38,4.99978598]
[1760817918152,2.8,186.39,186.38,4.99978598]
[1760817918455,47.02,186.39,186.37,2.83]
[1760817919355,2.8,186.39,186.37,2.83]
[1760817919555,34.62,186.39,186.37,2.83]
[1760817919759,47.02,186.39,186.37,2.83]
[1760817919960,44.22,186.39,186.36,6.68662498]
[1760817920256,44.22,186.39,186.37,2.83]
[1760817920458,47.02,186.39,186.37,2.83]
[1760817920960,2.8,186.39,186.37,2.83]
[1760817922258,2.8,186.39,186.37,9.51662498]
[1760817922660,47.02,186.39,186.37,9.51662498]
[1760817923161,2.8,186.39,186.37,9.51662498]
[1760817923358,47.02,186.39,186.37,9.51662498]
[1760817923957,2.8,186.39,186.37,9.51662498]
[1760817924156,40.16,186.39,186.37,9.51662498]
[1760817924353,47.02,186.39,186.37,9.51662498]
[1760817924563,2.8,186.38,186.37,6.68662498]
[1760817925764,2.8,186.38,186.37,9.51662498]
[1760817926455,34.14,186.39,186.37,9.51662498]
[1760817926657,2.8,186.38,186.37,9.51662498]
[1760817927063,2.8,186.39,186.37,9.51662498]
[1760817927659,2.8,186.39,186.37,6.68662498]
[1760817928166,2.8,186.39,186.37,9.51662498]
[1760817928865,2.8,186.39,186.38,5.00533351]
[1760817929666,41.2,186.39,186.38,5.00533351]
[1760817930171,2.8,186.39,186.38,5.00533351]
[1760817936773,38.38,186.4,186.38,5.00533351]
[1760817936973,2.8,186.4,186.38,7.83533351]
[1760817937171,47.0,186.4,186.38,7.83533351]
[1760817937369,2.8,186.4,186.38,7.83488027]
[1760817937773,4.8267,186.42,186.38,7.83488027]
[1760817937973,2.8,186.4,186.38,5.00488027]
[1760817938371,34.0,186.41,186.38,5.00488027]
[1760817938669,2.8,186.4,186.38,5.00488027]
[1760817938873,2.8,186.4,186.38,7.83488027]
[1760817941166,2.8,186.45,186.4,2.83]
[1760817941372,2.8,186.44,186.41,2.83]
[1760817941665,2.8,186.44,186.42,2.83]
[1760817941868,47.0,186.44,186.42,2.83]
[1760817942071,47.0,186.44,186.42,7.83413525]
[1760817942574,2.8,186.44,186.42,7.83413525]
[1760817942776,47.0,186.44,186.42,7.83413525]
[1760817942977,2.8,186.44,186.42,7.83413525]
[1760817943176,47.0,186.44,186.42,7.83413525]
[1760817943373,2.8,186.44,186.42,7.83413525]
[1760817943571,47.0,186.44,186.42,7.83413525]
[1760817943771,2.8,186.44,186.42,7.83413525]
[1760817944275,47.0,186.44,186.42,2.83]
[1760817944975,2.8,186.43,186.41,7.83413525]
[1760817945271,2.8,186.43,186.41,5.00413525]
[1760817945476,2.8,186.43,186.42,2.83]
[1760817945677,4.8259,186.45,186.42,2.83]
[1760817945972,47.0,186.44,186.41,5.00146795]
[1760817946177,47.0,186.44,186.42,2.83]
[1760817946476,47.0,186.44,186.42,2.73]
[1760817946772,4.8259,186.45,186.41,5.00146795]
[1760817946969,7.5059,186.45,186.43,2.73]
[1760817947169,44.2,186.44,186.43,2.73]
[1760817947575,51.7059,186.45,186.43,2.73]
[1760817947770,16.43892609,186.51,186.42,7.73146795]
[1760817947977,2.68,186.5,186.44,2.73]
[1760817948176,2.68,186.48,186.43,8.33925225]
[1760817948767,7.5042,186.51,186.45,2.73]
[1760817949076,7.5042,186.51,186.46,5.00146795]
[1760817949278,7.5042,186.51,186.48,2.73]
[1760817949471,44.2,186.5,186.46,2.73]
[1760817949875,46.88,186.5,186.46,2.73]
[1760817950076,46.88,186.5,186.45,5.00146795]
[1760817950279,46.88,186.5,186.46,2.73]
[1760817950471,2.68,186.5,186.46,2.73]
[1760817950774,46.88,186.5,186.46,2.73]
[1760817950975,2.68,186.5,186.45,5.00146795]
[1760817951179,46.88,186.5,186.46,2.73]